bitfinex/quotes_SOLUSD_20250710
["timestamp","ask_amount","ask_price","bid_price","bid_amount"]
[1752157372942,26.24481338,157.28,157.27,0.06]
[1752157373318,32.60290086,157.28,157.27,0.06]
[1752157374135,41.01550381,157.28,157.27,0.06]
[1752157375042,34.22250086,157.28,157.27,0.06]
[1752157375628,34.36466243,157.28,157.27,0.06]
[1752157377627,186.85766538,157.28,157.27,1e-08]
[1752157378127,41.15766538,157.28,157.27,1e-08]
[1752157378328,0.28432314,157.23,157.22,0.06]
[1752157378557,59.24697495,157.23,157.22,0.06]
[1752157378761,58.44481338,157.23,157.22,0.06]
[1752157379050,32.79300295,157.24,157.22,0.06]
[1752157379260,39.65300295,157.24,157.22,0.06]
[1752157379437,25.44265181,157.23,157.22,0.06]
[1752157379758,32.60492277,157.23,157.22,0.06]
[1752157380262,32.74708434,157.23,157.22,0.06]
[1752157382231,31.94492277,157.23,157.22,0.06]
[1752157382671,13.15311234,157.23,157.22,0.06]
[1752157383474,6.36010939,157.23,157.22,0.06]
[1752157383673,13.15311234,157.23,157.22,0.06]
[1752157383845,32.60492277,157.23,157.22,0.06]
[1752157384375,13.15311234,157.23,157.22,0.06]
[1752157384552,46.01311234,157.23,157.22,0.06]
[1752157384752,65.46492277,157.23,157.22,0.06]
[1752157386167,0.66,157.25,157.22,0.06]
[1752157386395,18.64964886,157.27,157.24,6.79300295]
[1752157386544,6.35817282,157.28,157.25,6.79300295]
[1752157386744,32.35817282,157.28,157.25,7.45300295]
[1752157387760,32.35817282,157.28,157.25,0.66]
[1752157388074,26.0,157.28,157.26,7.45300295]
[1752157388769,32.3580985,157.28,157.25,6.79300295]
[1752157388963,32.3580985,157.28,157.25,7.45300295]
[1752157389464,6.3580985,157.28,157.25,7.45300295]
[1752157390566,25.00748631,157.29,157.25,7.45300295]
[1752157390764,25.00748631,157.29,157.26,0.66]
[1752157391069,6.35783745,157.29,157.26,7.45300295]
[1752157391454,6.35783745,157.29,157.26,0.66]
[1752157391660,6.35783745,157.29,157.26,7.45300295]
[1752157391948,6.35783745,157.29,157.26,6.79300295]
[1752157392479,7.01783745,157.29,157.26,6.79300295]
[1752157393482,25.44265181,157.27,157.22,0.06]
[1752157393681,6.79300295,157.25,157.22,0.06]
[1752157393905,40.31300295,157.26,157.22,0.06]
[1752157394258,40.31300295,157.26,157.22,0.72]
[1752157394966,40.31300295,157.26,157.22,7.51300295]
[1752157395285,32.86,157.26,157.22,0.06]
[1752157395577,13.15080387,157.29,157.25,6.79300295]
[1752157395751,39.21780092,157.29,157.26,0.66]
[1752157395946,39.81043616,157.3,157.26,0.66]
[1752157396147,72.67043616,157.3,157.26,0.66]
[1752157396467,39.81043616,157.3,157.26,0.66]
[1752157396650,72.01043616,157.3,157.25,6.79300295]
[1752157396966,7.45300295,157.29,157.25,6.79300295]
[1752157397569,13.81079563,157.29,157.25,7.45300295]
[1752157398081,58.86,157.3,157.27,6.79300295]
[1752157398256,65.87734366,157.3,157.26,7.45300295]
[1752157398572,72.67034661,157.3,157.26,6.79300295]
[1752157399180,72.67034661,157.3,157.26,7.48300295]
[1752157399481,7.51300295,157.29,157.25,6.79300295]
[1752157400067,7.51300295,157.28,157.24,6.79300295]
[1752157400274,32.35734366,157.3,157.22,6.42035706]
[1752157400275,25.44265181,157.26,157.22,0.06]
[1752157400578,51.50964886,157.26,157.22,6.85300295]
[1752157400781,58.30265181,157.26,157.22,7.54300295]
[1752157401284,59.02265181,157.26,157.22,7.54300295]
[1752157401464,65.38195066,157.26,157.22,7.54300295]
[1752157401666,64.66195066,157.26,157.22,6.85300295]
[1752157401866,0.72,157.25,157.22,6.85300295]
[1752157402173,0.72,157.25,157.22,0.06]
[1752157403181,7.07949238,157.25,157.22,0.06]
[1752157404459,18.64964886,157.29,157.24,6.79300295]
[1752157404666,7.07738668,157.3,157.26,6.79300295]
[1752157404981,0.03,157.27,157.26,7.48300295]
[1752157406362,0.03,157.27,157.26,13.84189904]
[1752157406962,0.03,157.27,157.26,7.48300295]
[1752157407681,0.03,157.27,157.26,13.84189904]
[1752157412999,0.03,157.27,157.26,0.69]
[1752157413167,0.03,157.27,157.26,6.79300295]
[1752157413767,0.03,157.27,157.26,7.48300295]
[1752157414385,0.03,157.27,157.26,13.84189904]
[1752157415391,0.03,157.27,157.26,15.46279904]
[1752157415683,0.03,157.27,157.26,21.55999904]
[1752157416185,0.03,157.27,157.26,30.46059142]
[1752157416764,0.03,157.27,157.26,21.55999904]
[1752157417079,0.03,157.27,157.26,30.46059142]
[1752157417388,0.03,157.27,157.26,21.55999904]
[1752157419265,0.03,157.27,157.26,37.25359437]
[1752157419470,0.03,157.27,157.26,30.46059142]
[1752157420211,0.03,157.27,157.26,56.18756637]
[1752157420411,0.03,157.31,157.3,6.79300295]
[1752157420707,0.03,157.31,157.3,39.63300295]
[1752157421011,0.03,157.31,157.28,0.69]
[1752157421217,0.03,157.31,157.3,6.79300295]
[1752157422121,0.75,157.31,157.27,0.69]
[1752157422291,0.75,157.31,157.28,6.79300295]
[1752157422292,0.72,157.3,157.28,6.79300295]
[1752157422618,0.03,157.31,157.28,6.79300295]
[1752157422909,0.75,157.31,157.28,6.79300295]
[1752157423300,13.90009925,157.31,157.27,6.79300295]
[1752157423492,0.72,157.3,157.27,6.79300295]
[1752157423903,0.72,157.29,157.26,6.79300295]
[1752157424096,7.51300295,157.29,157.24,6.79300295]
[1752157424306,7.51300295,157.28,157.22,0.75]
[1752157424607,0.72,157.27,157.23,6.79300295]
[1752157424797,0.72,157.29,157.24,6.79300295]
[1752157424999,0.72,157.28,157.24,7.48300295]
[1752157425208,13.15068621,157.29,157.24,6.79300295]
[1752157425509,0.72,157.27,157.24,6.79300295]
[1752157426912,0.72,157.27,157.24,6.85300295]
[1752157428713,0.72,157.26,157.24,0.06]
[1752157428908,7.51300295,157.26,157.24,0.06]
[1752157429106,0.7,157.25,157.24,0.06]
[1752157430221,13.85150044,157.27,157.24,0.06]
[1752157430400,0.7,157.26,157.24,0.06]
[1752157432295,0.7,157.25,157.24,0.06]
[1752157433012,0.7,157.26,157.24,0.06]
[1752157434699,13.15166565,157.27,157.24,0.06]
[1752157434901,0.7,157.26,157.24,0.06]
[1752157435506,0.7,157.25,157.24,0.06]
[1752157437327,7.05930047,157.25,157.24,0.06]
[1752157437526,0.7,157.25,157.24,0.06]
[1752157438530,13.85230342,157.25,157.24,0.06]
[1752157438835,32.50195228,157.25,157.24,0.06]
[1752157439202,32.64411385,157.25,157.24,0.06]
[1752157440628,32.50195228,157.25,157.24,0.06]
[1752157441228,32.64411385,157.25,157.24,0.06]
[1752157441932,32.78627542,157.25,157.24,0.06]
[1752157443328,25.99327247,157.25,157.24,0.06]
[1752157443510,32.78627542,157.25,157.24,0.06]
[1752157444106,25.8511109,157.25,157.24,0.06]
[1752157444314,32.64411385,157.25,157.24,0.06]
[1752157444801,32.78627542,157.25,157.24,0.06]
[1752157446422,58.78627542,157.25,157.24,0.06]
[1752157446626,46.15224886,157.23,157.22,0.06]
[1752157446819,85.92741338,157.23,157.22,0.06]
[1752157447129,86.62741338,157.23,157.22,0.06]
[1752157447436,92.98752277,157.23,157.22,0.06]
[1752157447819,44.64964886,157.2,157.19,0.06]
[1752157448021,84.28265181,157.2,157.19,0.06]
[1752157448208,84.98265181,157.2,157.19,0.06]
[1752157449340,84.55097201,157.2,157.19,0.06]
[1752157449510,91.34397496,157.2,157.19,0.06]
[1752157450434,91.48613653,157.2,157.19,0.06]
[1752157451912,52.33181043,157.2,157.19,0.06]
[1752157452239,26.28481338,157.2,157.19,0.06]
[1752157452616,32.64613653,157.2,157.19,0.06]
[1752157453626,25.85313358,157.2,157.19,0.06]
[1752157453826,32.64613653,157.2,157.19,0.06]
[1752157456629,0.7,157.22,157.19,0.72]
[1752157456825,33.54,157.22,157.19,0.72]
[1752157457020,18.64964886,157.23,157.2,7.45300295]
[1752157457226,178.54,157.24,157.21,7.45300295]
[1752157457415,145.7,157.24,157.21,7.45300295]
[1752157457917,18.64964886,157.24,157.21,7.45300295]
[1752157458312,25.00943353,157.24,157.21,7.45300295]
[1752157458520,25.70943353,157.24,157.2,6.79300295]
[1752157458742,0.7,157.23,157.2,6.79300295]
[1752157461523,0.7,157.23,157.19,7.08163129]
[1752157461524,0.66,157.22,157.19,0.06]
[1752157462942,0.66,157.22,157.19,6.85300295]
[1752157463122,0.66,157.22,157.19,7.53300295]
[1752157463438,45.99316738,157.23,157.19,7.53300295]
[1752157463642,0.66,157.22,157.19,6.85300295]
[1752157464844,0.66,157.22,157.19,0.06]
[1752157465040,7.02056958,157.22,157.19,0.06]
[1752157466046,0.66,157.21,157.19,0.06]
[1752157466649,0.66,157.2,157.19,0.06]
[1752157467946,45.99315083,157.23,157.19,7.53300295]
[1752157468138,46.65315083,157.23,157.19,7.53300295]
[1752157468445,0.66,157.22,157.19,0.74]
[1752157468822,0.66,157.22,157.19,0.06]
[1752157468823,13.81363461,157.22,157.19,0.06]
[1752157469029,25.44265181,157.2,157.19,0.06]
[1752157469424,26.10265181,157.2,157.19,0.06]
[1752157469625,19.30964886,157.2,157.19,0.06]
[1752157469826,26.10265181,157.2,157.19,0.06]
[1752157470044,32.60613653,157.2,157.19,0.06]
[1752157471358,32.46397496,157.2,157.19,0.06]
[1752157472154,25.67097201,157.2,157.19,0.06]
[1752157472453,32.46397496,157.2,157.19,0.06]
[1752157474047,32.84,157.21,157.19,0.06]
[1752157474234,0.03,157.24,157.2,7.47300295]
[1752157474427,0.03,157.24,157.19,0.06]
[1752157474428,0.03,157.24,157.21,7.47300295]
[1752157474937,0.03,157.24,157.21,0.68]
[1752157475248,0.03,157.24,157.22,6.79300295]
[1752157475446,0.03,157.24,157.21,0.68]
[1752157475447,0.03,157.24,157.21,7.47300295]
[1752157476035,0.03,157.24,157.21,6.79300295]
[1752157476229,0.69,157.24,157.2,6.79300295]
[1752157476431,0.66,157.23,157.2,6.79300295]
[1752157476632,0.66,157.22,157.19,0.06]
[1752157476954,18.64964886,157.21,157.19,0.06]
[1752157477129,26.10265181,157.2,157.19,0.06]
[1752157477566,32.46397496,157.2,157.19,0.06]
[1752157478063,25.67097201,157.2,157.19,0.06]
[1752157478229,32.46397496,157.2,157.19,0.06]
[1752157479242,25.67097201,157.2,157.19,0.06]
[1752157482540,39.63300295,157.22,157.19,0.06]
[1752157482934,145.73,157.24,157.2,7.47300295]
[1752157483140,0.03,157.24,157.21,7.47300295]
[1752157483735,0.03,157.24,157.22,6.79300295]
[1752157484236,0.03,157.24,157.22,0.68]
[1752157484548,0.03,157.24,157.22,7.47300295]
[1752157484738,0.03,157.24,157.22,6.79300295]
[1752157485078,0.03,157.24,157.21,6.79300295]
[1752157485245,0.69,157.24,157.21,6.79300295]
[1752157485686,19.30964886,157.23,157.19,6.85300295]
[1752157485964,0.66,157.22,157.19,6.85300295]
[1752157487155,7.02056196,157.22,157.19,6.85300295]
[1752157489150,0.67,157.21,157.19,0.06]
[1752157489543,0.67,157.2,157.19,0.06]
[1752157490361,7.03132315,157.2,157.19,0.06]
[1752157490559,0.67,157.2,157.19,0.06]
[1752157491163,18.64964886,157.21,157.19,0.06]
[1752157491493,46.64358131,157.22,157.19,0.06]
[1752157491494,32.82,157.22,157.19,0.06]
[1752157491669,0.67,157.21,157.19,0.06]
[1752157492246,7.03106677,157.21,157.19,0.06]
[1752157492564,0.67,157.2,157.19,0.06]
[1752157493071,45.97369224,157.22,157.19,0.06]
[1752157493568,46.64369224,157.22,157.19,0.06]
[1752157493771,46.67369224,157.22,157.19,0.06]
[1752157494075,7.03098375,157.21,157.19,0.06]
[1752157494669,0.67,157.2,157.19,0.06]
[1752157495847,26.11265181,157.2,157.19,0.06]
[1752157496175,32.47397496,157.2,157.19,0.06]
[1752157498293,32.61613653,157.2,157.19,0.06]
[1752157498454,91.43613653,157.2,157.19,0.06]
[1752157500679,72.22913948,157.2,157.19,1e-08]
[1752157501174,72.22913948,157.2,157.13,0.1]
[1752157501175,18.79181043,157.14,157.13,0.1]
[1752157501380,91.19781633,157.14,157.13,0.1]
[1752157501564,85.07481338,157.14,157.13,0.1]
[1752157501964,66.0099779,157.14,157.11,0.1]
[1752157502163,66.0099779,157.14,157.08,0.1]
[1752157502164,26.0,157.1,157.08,0.1]
[1752157502375,39.18577757,157.09,157.08,0.1]
[1752157502563,64.91275252,157.09,157.08,0.1]
[1752157502789,18.933972,157.08,157.07,0.1]
[1752157502988,52.39697495,157.08,157.07,0.1]
[1752157503690,27.95017495,157.08,156.98,14.89180295]
[1752157503988,27.95017495,157.08,156.96,10.19925361]
[1752157503989,18.64964886,157.03,156.96,1.9867954]
[1752157504171,6.79300295,157.0,156.96,1.9867954]
[1752157504495,7.46300295,156.99,156.96,1.3167954]
[1752157504677,6.79300295,156.99,156.96,1.3167954]
[1752157504882,25.44265181,157.0,156.96,1.3167954]
[1752157505182,6.79300295,156.99,156.96,1.3167954]
[1752157505384,7.46300295,156.99,156.96,1.3167954]
[1752157505688,18.64964886,156.98,156.96,1.3167954]
[1752157505986,26.25481338,156.97,156.96,1.3167954]
[1752157506294,33.04781633,156.97,156.96,0.5967954]
[1752157506599,0.14216157,156.92,156.87,0.67]
[1752157506766,6.79300295,156.89,156.84,12.80721514]
[1752157506968,10.25047468,156.87,156.84,0.67]
[1752157507382,10.25047468,156.87,156.79,15.09165821]
[1752157507383,10.25047468,156.85,156.82,0.67]
[1752157507578,10.25047468,156.84,156.8,0.67]
[1752157507775,10.25047468,156.83,156.8,0.67]
[1752157508095,32.96,156.83,156.81,0.67]
[1752157508272,28.90012354,156.84,156.81,0.67]
[1752157508773,28.90012354,156.84,156.79,10.25047468]
[1752157508966,10.25047468,156.83,156.79,0.67]
[1752157509162,43.21047468,156.83,156.79,0.67]
[1752157509368,10.25047468,156.81,156.77,0.67]
[1752157509683,10.25047468,156.81,156.74,17.30042292]
[1752157509684,10.25047468,156.79,156.74,17.30042292]
[1752157509872,10.25047468,156.78,156.75,0.67]
[1752157510179,48.31574116,156.84,156.75,0.67]
[1752157510180,26.0,156.84,156.75,0.67]
[1752157510391,69.27047468,156.84,156.8,10.25047468]
[1752157510688,28.90012354,156.83,156.81,0.67]
[1752157510893,18.64964886,156.81,156.76,0.67]
[1752157511076,28.90012354,156.81,156.76,10.92047468]
[1752157511389,28.90012354,156.81,156.77,0.67]
[1752157511587,28.90012354,156.81,156.78,0.67]
[1752157511791,18.64964886,156.81,156.78,0.67]
[1752157511984,33.02,156.82,156.79,10.92047468]
[1752157512290,33.02,156.82,156.8,0.67]
[1752157512870,43.27047468,156.82,156.77,0.67]
[1752157513195,18.64964886,156.81,156.77,10.92047468]
[1752157513368,10.25047468,156.8,156.73,6.38008165]
[1752157513568,10.25047468,156.78,156.74,0.67]
[1752157513788,33.08,156.78,156.74,0.67]
[1752157514070,33.08,156.78,156.75,10.92047468]
[1752157514377,43.33047468,156.78,156.75,0.67]
[1752157514579,43.33047468,156.78,156.73,0.67]
[1752157514776,10.25047468,156.77,156.73,0.67]
[1752157514989,10.25047468,156.77,156.73,10.92047468]
[1752157515187,10.25047468,156.77,156.75,0.06]
[1752157515188,28.90012354,156.77,156.75,0.06]
[1752157515405,29.18444668,156.76,156.75,0.06]
[1752157515710,18.64964886,156.76,156.75,0.06]
[1752157515886,59.22216157,156.78,156.75,0.06]
[1752157516091,18.64964886,156.77,156.75,0.06]
[1752157516593,26.0,156.78,156.75,0.06]
[1752157516794,59.16,156.81,156.77,10.25047468]
[1752157516992,0.14216157,156.82,156.78,10.92047468]
[1752157517183,10.25047468,156.86,156.81,10.25047468]
[1752157517387,33.16,156.85,156.82,10.25047468]
[1752157517709,26.0,156.85,156.83,10.92047468]
[1752157517989,26.0,156.85,156.83,0.67]
[1752157518226,18.64964886,156.84,156.79,7.0685]
[1752157518371,18.64964886,156.82,156.77,0.67]
[1752157518575,28.90012354,156.82,156.77,0.67]
[1752157518910,18.64964886,156.82,156.78,0.67]
[1752157519072,33.2,156.83,156.8,10.25047468]
[1752157519275,18.64964886,156.85,156.82,10.25047468]
[1752157519574,18.64964886,156.85,156.78,10.25047468]
[1752157519575,51.90964886,156.87,156.83,0.71]
[1752157519978,155.95047468,156.88,156.84,0.71]
[1752157519979,18.64964886,156.88,156.84,0.71]
[1752157520181,10.25047468,156.86,156.82,10.25047468]
[1752157520383,10.25047468,156.86,156.81,10.96047468]
[1752157520575,18.64964886,156.84,156.82,0.71]
[1752157520800,18.64964886,156.84,156.79,6.37795777]
[1752157521114,18.64964886,156.82,156.79,0.71]
[1752157521597,18.933972,156.83,156.77,0.71]
[1752157521900,10.25047468,156.81,156.77,0.71]
[1752157522098,0.28432314,156.81,156.77,0.71]
[1752157522280,6.37699499,156.82,156.78,0.71]
[1752157522281,0.28432314,156.82,156.78,0.71]
[1752157522488,18.64964886,156.83,156.79,10.96047468]
[1752157522786,18.64964886,156.83,156.8,0.71]
[1752157523098,59.3,156.84,156.81,0.71]
[1752157523470,59.3,156.84,156.8,10.25047468]
[1752157523671,18.933972,156.85,156.81,0.71]
[1752157523915,18.933972,156.85,156.82,0.71]
[1752157524079,205.0,156.86,156.82,0.71]
[1752157524284,215.25047468,156.86,156.82,10.96047468]
[1752157524490,221.62559638,156.86,156.81,10.25047468]
[1752157524705,10.25047468,156.85,156.81,0.71]
[1752157524913,29.04228511,156.85,156.8,10.25047468]
[1752157525099,29.04228511,156.85,156.81,0.71]
[1752157525409,18.79181043,156.85,156.81,10.96047468]
[1752157525573,29.04228511,156.85,156.81,10.96047468]
[1752157525777,10.25047468,156.84,156.8,10.25047468]
[1752157526296,10.25047468,156.84,156.76,22.32712426]
[1752157526297,17.19641756,156.84,156.79,10.25047468]
[1752157526614,18.79181043,156.85,156.8,0.71]
[1752157526809,18.79181043,156.85,156.78,6.3782313]
[1752157526810,29.04228511,156.85,156.81,10.25047468]
[1752157527112,29.04228511,156.85,156.81,0.71]
[1752157527409,189.25047468,156.86,156.81,10.96047468]
[1752157527902,189.82047468,156.86,156.81,10.96047468]
[1752157528081,189.82047468,156.86,156.81,0.71]
[1752157528394,179.16,156.86,156.82,10.96047468]
[1752157528602,33.46,156.86,156.82,10.96047468]
[1752157528906,88.62444668,156.87,156.83,10.96047468]
[1752157529404,88.62444668,156.87,156.83,0.71]
[1752157529984,88.62444668,156.87,156.83,7.08624143]
[1752157530188,44.933972,156.87,156.83,7.08624143]
[1752157530385,78.373972,156.87,156.83,7.08624143]
[1752157530599,26.0,156.87,156.84,0.71]
[1752157531177,29.61228511,156.86,156.8,0.71]
[1752157531504,62.46228511,156.86,156.81,10.25047468]
[1752157531707,62.46228511,156.86,156.82,10.25047468]
[1752157531915,33.42,156.86,156.82,10.25047468]
[1752157532220,36.25047468,156.87,156.82,0.71]
[1752157532380,29.47012354,156.86,156.81,16.62761899]
[1752157532579,26.0,156.87,156.83,10.25047468]
[1752157532791,26.0,156.87,156.84,10.96047468]
[1752157533114,26.0,156.87,156.84,0.71]
[1752157533511,26.0,156.87,156.83,10.25047468]
[1752157533716,26.0,156.87,156.84,10.96047468]
[1752157534912,26.0,156.87,156.83,10.25047468]
[1752157535121,0.57,156.86,156.8,1.59]
[1752157535422,26.0,156.82,156.76,6.37917836]
[1752157535588,28.90012354,156.81,156.76,17.33965304]
[1752157535783,0.28432314,156.8,156.77,0.71]
[1752157535999,0.28432314,156.8,156.77,0.21]
[1752157536200,10.25047468,156.8,156.77,0.21]
[1752157536590,10.25047468,156.8,156.75,14.4522606]
[1752157536591,10.25047468,156.79,156.75,8.0728]
[1752157536791,10.25047468,156.79,156.75,16.69005399]
[1752157537210,10.25047468,156.8,156.76,10.25047468]
[1752157537391,10.25047468,156.8,156.75,16.69005399]
[1752157537904,76.99154056,156.82,156.77,10.25047468]
[1752157538095,77.70154056,156.82,156.77,10.96047468]
[1752157538409,10.25047468,156.81,156.77,0.71]
[1752157538713,10.25047468,156.8,156.75,6.43957931]
[1752157538900,10.25047468,156.79,156.75,7.14957931]
[1752157539095,10.25047468,156.79,156.75,17.40005399]
[1752157539304,0.71,156.8,156.75,11.02047468]
[1752157539614,10.25047468,156.79,156.75,11.02047468]
[1752157539822,10.25047468,156.79,156.75,17.39991445]
[1752157540416,70.33047468,156.82,156.77,10.25047468]
[1752157540620,71.04047468,156.82,156.77,0.71]
[1752157540813,77.4172359,156.82,156.77,10.96047468]
[1752157541014,0.71,156.81,156.75,6.43943977]
[1752157541325,0.71,156.81,156.75,0.06]
[1752157541326,10.25047468,156.78,156.75,0.06]
[1752157541719,10.96047468,156.78,156.75,0.06]
[1752157541927,10.25047468,156.78,156.75,0.06]
[1752157542229,55.04228511,156.76,156.75,0.06]
[1752157542411,79.23181043,156.76,156.75,0.06]
[1752157542610,90.19228511,156.76,156.75,0.06]
[1752157542916,26.0,156.72,156.71,0.1]
[1752157543097,34.62,156.72,156.71,0.1]
[1752157543414,64.37228511,156.72,156.71,0.1]
[1752157543719,70.75309164,156.72,156.71,0.1]
[1752157544058,77.06829164,156.72,156.71,1e-08]
[1752157545508,32.19781696,156.72,156.71,1e-08]
[1752157545724,51.88261696,156.72,156.71,1e-08]
[1752157545931,0.14216157,156.72,156.71,1e-08]
[1752157546100,0.71,156.74,156.71,1e-08]
[1752157546435,35.54,156.73,156.71,1e-08]
[1752157546797,2.3287,156.79,156.71,1e-08]
[1752157547102,35.6,156.8,156.76,10.25047468]
[1752157547303,35.6,156.8,156.76,10.96047468]
[1752157547631,10.25047468,156.82,156.77,10.96047468]
[1752157547823,35.62,156.82,156.78,0.71]
[1752157548029,45.87047468,156.82,156.78,10.96047468]
[1752157548331,10.25047468,156.83,156.79,0.71]
[1752157548631,71.89047468,156.83,156.79,0.71]
[1752157548821,10.25047468,156.81,156.76,0.71]
[1752157549142,10.25047468,156.79,156.74,2.3063]
[1752157549359,10.25047468,156.78,156.74,0.69]
[1752157549633,0.14216157,156.79,156.72,7.07075484]
[1752157549842,10.25047468,156.76,156.72,10.94047468]
[1752157550045,10.25047468,156.76,156.72,0.69]
[1752157550336,0.7,156.75,156.71,1e-08]
[1752157550509,35.66,156.74,156.71,1e-08]
[1752157550927,45.91047468,156.74,156.71,1e-08]
[1752157551406,10.25047468,156.73,156.71,1e-08]
[1752157551845,45.91047468,156.74,156.71,1e-08]
[1752157552037,10.25047468,156.73,156.71,1e-08]
[1752157552336,10.25047468,156.72,156.71,1e-08]
[1752157552516,0.7,156.72,156.71,1e-08]
[1752157552917,10.95047468,156.72,156.71,1e-08]
[1752157553309,7.08080653,156.72,156.71,1e-08]
[1752157553610,17.33128121,156.72,156.71,1e-08]
[1752157553815,7.08080653,156.72,156.71,1e-08]
[1752157554016,17.33128121,156.72,156.71,1e-08]
[1752157554931,6.38080653,156.72,156.71,1e-08]
[1752157555115,6.52267968,156.73,156.71,1e-08]
[1752157555318,10.25047468,156.72,156.71,1e-08]
[1752157555723,10.95047468,156.72,156.71,1e-08]
[1752157556224,29.74228511,156.72,156.71,1e-08]
[1752157556937,29.88444668,156.72,156.71,1e-08]
[1752157557144,36.26525321,156.72,156.71,1e-08]
[1752157557346,26.01477853,156.72,156.71,1e-08]
[1752157557517,72.16525321,156.72,156.71,1e-08]
[1752157560244,0.28432314,156.71,156.67,0.1]
[1752157560412,18.933972,156.69,156.67,0.1]
[1752157560618,46.13047468,156.68,156.67,0.1]
[1752157561032,65.62228511,156.68,156.67,0.1]
[1752157561239,72.00472064,156.68,156.67,0.1]
[1752157561427,42.4045971,156.68,156.67,0.1]
[1752157561841,0.7,156.72,156.67,0.1]
[1752157562017,10.25047468,156.68,156.67,0.1]
[1752157562221,10.25047468,156.69,156.67,0.1]
[1752157563451,18.64964886,156.73,156.68,0.69]
[1752157563620,35.82,156.72,156.67,0.1]
[1752157563817,18.64964886,156.75,156.68,0.69]
[1752157564022,36.1,156.74,156.68,0.69]
[1752157564246,36.1,156.74,156.69,10.25047468]
[1752157564428,36.1,156.74,156.7,0.69]
[1752157564632,46.35047468,156.74,156.7,0.69]
[1752157564950,16.63087409,156.73,156.7,0.69]
[1752157565125,16.63087409,156.73,156.68,10.94047468]
[1752157565126,7.08039941,156.73,156.68,10.94047468]
[1752157565327,6.38039941,156.73,156.69,0.69]
[1752157565947,10.39263625,156.72,156.67,7.4239]
[1752157566137,10.25047468,156.69,156.67,7.4239]
[1752157566339,10.25047468,156.69,156.67,0.1]
[1752157567046,16.63283163,156.69,156.67,0.1]
[1752157567236,6.38235695,156.69,156.67,0.1]
[1752157567543,16.77435311,156.7,156.67,0.1]
[1752157567747,10.25047468,156.68,156.67,0.1]
[1752157568052,46.33047468,156.68,156.67,0.1]
[1752157568745,36.08,156.68,156.67,0.1]
[1752157568947,46.33047468,156.68,156.67,0.1]
[1752157569124,52.71291021,156.68,156.67,0.1]
[1752157569746,0.7,156.7,156.67,0.1]
[1752157569747,42.44212555,156.69,156.67,0.1]
[1752157569949,10.25047468,156.68,156.67,0.1]
[1752157570632,11.09263625,156.68,156.67,0.1]
[1752157571030,17.47507178,156.68,156.67,0.1]
[1752157571348,16.77507178,156.68,156.67,0.1]
[1752157571656,52.63291021,156.68,156.67,0.1]
[1752157572351,53.47507178,156.68,156.67,0.1]
[1752157574245,72.12472064,156.68,156.67,0.1]
[1752157574534,26.14216157,156.66,156.65,1.3167954]
[1752157574734,72.35263625,156.66,156.65,1.3167954]
[1752157574952,79.4358866,156.66,156.65,1.3167954]
[1752157575154,78.59372503,156.66,156.65,1.3167954]
[1752157575374,68.48541192,156.66,156.65,1.3167954]
[1752157575538,145.7,156.7,156.65,2.0067954]
[1752157575735,145.7,156.7,156.66,0.69]
[1752157575935,145.7,156.7,156.69,10.25047468]
[1752157576248,10.25047468,156.74,156.69,10.94047468]
[1752157576441,35.98,156.73,156.7,0.69]
[1752157577058,42.36056289,156.73,156.7,0.69]
[1752157577271,6.38056289,156.73,156.7,0.69]
[1752157577559,52.59103757,156.73,156.68,10.94047468]
[1752157577732,52.57103757,156.73,156.69,0.69]
[1752157578146,42.32056289,156.73,156.69,10.94047468]
[1752157578346,52.57103757,156.73,156.69,10.25047468]
[1752157578545,52.57103757,156.73,156.69,0.69]